[Event "1er Festival international de Cassis 2022"]
[Site "Cassis"]
[Date "2022.05.28"]
[Round "7.8"]
[White "Kuhn, Clement"]
[Black "Bremond, Pascal"]
[Result "1-0"]
[TimeControl "1 h 30 + 30 s"]
[WhiteElo "2280"]
[BlackElo "1915"]

1. d4 {[%clk 01:30:56]} {[%emt 00:00:04]} Nf6 {[%clk 01:30:50]} {[%emt
00:00:09]} 2. c4 {[%emt 00:00:07]} g6 {[%clk 01:31:02]} {[%emt 00:00:16]} 3.
Nc3 {[%clk 01:31:44]} {[%emt 00:00:07]} d5 {[%clk 01:29:48]} {[%emt 00:01:44]}
4. Nf3 {[%clk 01:30:32]} {[%emt 00:01:42]} Bg7 {[%clk 01:29:48]} {[%emt
00:00:29]} 5. Bg5 {[%clk 01:30:51]} {[%emt 00:00:12]} Ne4 {[%clk 01:29:59]}
{[%emt 00:00:19]} 6. Bf4 {[%clk 01:31:16]} {[%emt 00:00:06]} Nxc3 {[%clk
01:29:37]} {[%emt 00:00:52]} 7. bxc3 {[%clk 01:31:42]} {[%emt 00:00:04]} c5
{[%clk 01:29:13]} {[%emt 00:00:53]} 8. e3 {[%clk 01:31:15]} {[%emt 00:00:57]}
O-O {[%clk 01:29:12]} {[%emt 00:00:30]} 9. cxd5 {[%clk 01:31:06]} {[%emt
00:00:40]} Qxd5 {[%clk 01:29:16]} {[%emt 00:00:26]} 10. Be2 {[%clk 01:31:27]}
{[%emt 00:00:09]} cxd4 {[%clk 01:29:04]} {[%emt 00:00:43]} 11. cxd4 {[%clk
01:31:53]} {[%emt 00:00:04]} Nc6 {[%clk 01:28:33]} {[%emt 00:01:00]} 12. O-O
{[%clk 01:32:18]} {[%emt 00:00:06]} Bf5 {[%clk 01:27:06]} {[%emt 00:01:57]} 13.
Qa4 {[%clk 01:30:57]} {[%emt 00:01:51]} a6 {[%clk 01:21:23]} {[%emt 00:06:12]}
14. Rac1 {[%clk 01:28:07]} {[%emt 00:03:20]} Rac8 {[%clk 01:16:20]} {[%emt
00:05:33]} 15. Rc5 {[%clk 01:19:05]} {[%emt 00:09:33]} Qd8 {[%clk 01:04:26]}
{[%emt 00:12:23]} 16. Rfc1 {[%clk 01:16:06]} {[%emt 00:03:29]} Bd7 {[%clk
01:02:45]} {[%emt 00:02:10]} 17. Qa3 {[%clk 01:09:39]} {[%emt 00:06:57]} Na7
{[%clk 00:56:52]} {[%emt 00:06:23]} 18. Rxc8 {[%clk 01:03:28]} {[%emt
00:06:41]} Bxc8 {[%clk 00:55:17]} {[%emt 00:02:04]} 19. Qc5 {[%clk 00:55:30]}
{[%emt 00:08:28]} b6 {[%clk 00:51:15]} {[%emt 00:04:33]} 20. Qc7 {[%clk
00:55:02]} {[%emt 00:00:58]} Qxc7 {[%clk 00:51:06]} {[%emt 00:00:39]} 21. Bxc7
{[%clk 00:55:03]} {[%emt 00:00:29]} Bb7 {[%clk 00:44:23]} {[%emt 00:07:12]} 22.
Bxb6 {[%clk 00:55:23]} {[%emt 00:00:11]} Rc8 {[%clk 00:44:25]} {[%emt
00:00:27]} 23. Bc5 {[%clk 00:50:34]} {[%emt 00:05:20]} Nb5 {[%clk 00:38:07]}
{[%emt 00:06:49]} 24. a4 {[%clk 00:47:23]} {[%emt 00:03:41]} Nd6 {[%clk
00:36:41]} {[%emt 00:01:55]} 25. Rb1 {[%clk 00:47:07]} {[%emt 00:00:46]} Be4
{[%clk 00:34:26]} {[%emt 00:02:44]} 26. Rb6 {[%clk 00:45:55]} {[%emt 00:01:44]}
a5 {[%clk 00:34:18]} {[%emt 00:00:38]} 27. h3 {[%clk 00:45:01]} {[%emt
00:01:24]} Bc2 {[%clk 00:33:01]} {[%emt 00:01:47]} 28. Ra6 {[%clk 00:40:15]}
{[%emt 00:05:16]} Bxa4 {[%clk 00:32:16]} {[%emt 00:01:14]} 29. Rxa5 {[%clk
00:40:44]} {[%emt 00:00:02]} Bc6 {[%clk 00:29:37]} {[%emt 00:03:09]} 30. Ra7
{[%clk 00:38:56]} {[%emt 00:02:18]} Bf6 {[%clk 00:26:12]} {[%emt 00:03:54]} 31.
Ne5 {[%clk 00:33:59]} {[%emt 00:05:28]} Bb5 {[%clk 00:16:20]} {[%emt 00:10:22]}
32. Bg4 {[%clk 00:27:33]} {[%emt 00:06:55]} Rxc5 {[%clk 00:14:59]} {[%emt
00:01:52]} 33. dxc5 {[%clk 00:27:43]} {[%emt 00:00:21]} Bxe5 {[%clk 00:15:21]}
{[%emt 00:00:07]} 34. Rxe7 {[%clk 00:22:55]} {[%emt 00:05:18]} Bf6 {[%clk
00:14:12]} {[%emt 00:01:39]} 35. Ra7 {[%clk 00:22:54]} {[%emt 00:00:31]} Ne4
{[%clk 00:07:44]} {[%emt 00:06:57]} 36. Bf3 {[%clk 00:22:27]} {[%emt 00:00:57]}
Nxc5 {[%clk 00:07:57]} {[%emt 00:00:18]} 37. Ra5 {[%clk 00:22:33]} {[%emt
00:00:25]} Bd7 {[%clk 00:08:01]} {[%emt 00:00:25]} 38. Rxc5 {[%clk 00:22:57]}
{[%emt 00:00:06]} Be6 {[%clk 00:07:54]} {[%emt 00:00:36]} 39. Bd5 {[%clk
00:23:06]} {[%emt 00:00:21]} Bd7 {[%clk 00:05:30]} {[%emt 00:02:54]} 40. Rc7
{[%clk 00:23:28]} {[%emt 00:00:08]} 1-0